[Event "*** Titled Tuesday Blitz"]
[Site "Chess.com"]
[Date "2021.04.06"]
[Round "7"]
[White "Chessmasterzt"]
[Black "fyall777"]
[Result "1/2-1/2"]
[WhiteElo "2595"]
[BlackElo "2443"]
[TimeControl "180+1"]
[EndTime "11:19:06 PDT"]
[Termination "Game drawn - insufficient material"]

1. d4 {[%clk 0:03:00.9]} 1... g6 {[%clk 0:02:58.1]} 2. c4 {[%clk 0:03:00.7]}
2... f5 {[%clk 0:02:56]} 3. Nf3 {[%clk 0:03:01.6]} 3... Bg7 {[%clk 0:02:56.1]}
4. g3 {[%clk 0:03:02]} 4... Nf6 {[%clk 0:02:56.3]} 5. Bg2 {[%clk 0:03:02.3]}
5... O-O {[%clk 0:02:57.2]} 6. O-O {[%clk 0:03:02]} 6... d6 {[%clk 0:02:58.1]}
7. Nc3 {[%clk 0:03:01.9]} 7... Nc6 {[%clk 0:02:58.6]} 8. d5 {[%clk 0:02:58.4]}
8... Ne5 {[%clk 0:02:56.9]} 9. Nxe5 {[%clk 0:02:58.6]} 9... dxe5 {[%clk
0:02:57.2]} 10. c5 {[%clk 0:02:58.9]} 10... e4 {[%clk 0:02:56.2]} 11. Qb3 {[%clk
0:02:58]} 11... e6 {[%clk 0:02:54.8]} 12. dxe6 {[%clk 0:02:23.2]} 12... Qe7
{[%clk 0:02:53.6]} 13. Bf4 {[%clk 0:02:13.2]} 13... Bxe6 {[%clk 0:02:45.1]} 14.
Qxb7 {[%clk 0:02:02.1]} 14... Qxc5 {[%clk 0:02:12.2]} 15. Qxc7 {[%clk
0:01:43.9]} 15... Qxc7 {[%clk 0:02:05.7]} 16. Bxc7 {[%clk 0:01:44.8]} 16... Rac8
{[%clk 0:02:02.4]} 17. Be5 {[%clk 0:01:43.7]} 17... Nd5 {[%clk 0:01:54.3]} 18.
Bxg7 {[%clk 0:01:38]} 18... Kxg7 {[%clk 0:01:54.7]} 19. Nxd5 {[%clk 0:01:38.2]}
19... Bxd5 {[%clk 0:01:54.7]} 20. Rfd1 {[%clk 0:01:38.8]} 20... Be6 {[%clk
0:01:42.4]} 21. Rac1 {[%clk 0:01:29.7]} 21... Bxa2 {[%clk 0:01:36.4]} 22. Ra1
{[%clk 0:01:14.7]} 22... Bf7 {[%clk 0:01:24.9]} 23. f3 {[%clk 0:00:54.6]} 23...
exf3 {[%clk 0:01:18.6]} 24. Bxf3 {[%clk 0:00:53.9]} 24... Rc7 {[%clk 0:01:18.7]}
25. Rd6 {[%clk 0:00:36.9]} 25... Rb8 {[%clk 0:01:16.7]} 26. Rda6 {[%clk
0:00:36.7]} 26... Rxb2 {[%clk 0:01:13.7]} 27. Rxa7 {[%clk 0:00:36.9]} 27... Rxa7
{[%clk 0:01:13.9]} 28. Rxa7 {[%clk 0:00:37.5]} 28... Kf6 {[%clk 0:01:11.9]} 29.
Ra6+ {[%clk 0:00:37.4]} 29... Kg7 {[%clk 0:01:10.5]} 30. h4 {[%clk 0:00:34.5]}
30... Rd2 {[%clk 0:01:02.3]} 31. Kf2 {[%clk 0:00:34.4]} 31... Rd7 {[%clk
0:00:59.7]} 32. Ra5 {[%clk 0:00:32.9]} 32... Rd6 {[%clk 0:00:56.2]} 33. h5
{[%clk 0:00:30.2]} 33... Kf6 {[%clk 0:00:55.2]} 34. hxg6 {[%clk 0:00:30.2]}
34... hxg6 {[%clk 0:00:53.6]} 35. e4 {[%clk 0:00:30.6]} 35... fxe4 {[%clk
0:00:50]} 36. Bxe4 {[%clk 0:00:31.5]} 36... Rb6 {[%clk 0:00:46.6]} 37. Ra3
{[%clk 0:00:21.6]} 37... Ke5 {[%clk 0:00:41.4]} 38. Ke3 {[%clk 0:00:15.4]} 38...
Rd6 {[%clk 0:00:24.6]} 39. Ra5+ {[%clk 0:00:14.3]} 39... Kf6 {[%clk 0:00:24.6]}
40. Rc5 {[%clk 0:00:14.3]} 40... g5 {[%clk 0:00:24.3]} 41. Rf5+ {[%clk
0:00:13.1]} 41... Ke7 {[%clk 0:00:22.2]} 42. Re5+ {[%clk 0:00:10.9]} 42... Re6
{[%clk 0:00:19.8]} 43. Rxg5 {[%clk 0:00:10.7]} 43... Kf6 {[%clk 0:00:19.8]} 44.
Rf5+ {[%clk 0:00:10.2]} 44... Kg7 {[%clk 0:00:19.9]} 45. Rg5+ {[%clk 0:00:08.6]}
45... Kf6 {[%clk 0:00:19.2]} 46. Rf5+ {[%clk 0:00:05.4]} 46... Kg7 {[%clk
0:00:18.8]} 47. Kf4 {[%clk 0:00:05.7]} 47... Rf6 {[%clk 0:00:18]} 48. g4 {[%clk
0:00:04.6]} 48... Rxf5+ {[%clk 0:00:17.9]} 49. Bxf5 {[%clk 0:00:05]} 49... Kf6
{[%clk 0:00:17.5]} 50. g5+ {[%clk 0:00:05]} 50... Kg7 {[%clk 0:00:17.1]} 51. Ke5
{[%clk 0:00:05.9]} 51... Be8 {[%clk 0:00:17.3]} 52. Ke6 {[%clk 0:00:05.6]} 52...
Bf7+ {[%clk 0:00:17.3]} 53. Ke7 {[%clk 0:00:05.9]} 53... Bh5 {[%clk 0:00:17.8]}
54. g6 {[%clk 0:00:06.1]} 54... Bxg6 {[%clk 0:00:17.7]} 1/2-1/2

[Event "*** Titled Tuesday Blitz"]
[Site "Chess.com"]
[Date "2021.04.06"]
[Round "7"]
[White "MustafayevFarid2004"]
[Black "Raud100"]
[Result "1-0"]
[WhiteElo "2449"]
[BlackElo "2267"]
[TimeControl "180+1"]
[EndTime "11:19:07 PDT"]
[Termination "MustafayevFarid2004 won on time"]

1. d4 {[%clk 0:03:00.9]} 1... d5 {[%clk 0:02:59.7]} 2. c4 {[%clk 0:03:00.4]}
2... c6 {[%clk 0:03:00.1]} 3. e3 {[%clk 0:02:56.8]} 3... Nf6 {[%clk 0:03:00]} 4.
Nf3 {[%clk 0:02:56.3]} 4... Bg4 {[%clk 0:03:00]} 5. Nbd2 {[%clk 0:02:56.2]} 5...
e6 {[%clk 0:02:59.9]} 6. h3 {[%clk 0:02:52.8]} 6... Bh5 {[%clk 0:02:59.4]} 7.
Bd3 {[%clk 0:02:52.3]} 7... Nbd7 {[%clk 0:02:54.8]} 8. Qb3 {[%clk 0:02:50.6]}
8... Qb6 {[%clk 0:02:50.1]} 9. O-O {[%clk 0:02:43.6]} 9... Be7 {[%clk 0:02:49]}
10. c5 {[%clk 0:02:34]} 10... Qc7 {[%clk 0:02:48.6]} 11. Re1 {[%clk 0:02:27.2]}
11... O-O {[%clk 0:02:47.7]} 12. e4 {[%clk 0:02:24.9]} 12... dxe4 {[%clk
0:02:46.9]} 13. Nxe4 {[%clk 0:02:22.1]} 13... Nxe4 {[%clk 0:02:46.8]} 14. Bxe4
{[%clk 0:02:22.9]} 14... Nf6 {[%clk 0:02:47]} 15. Bc2 {[%clk 0:02:17.5]} 15...
Rfd8 {[%clk 0:02:41]} 16. Ng5 {[%clk 0:01:53.8]} 16... Rxd4 {[%clk 0:02:34.6]}
17. Rxe6 {[%clk 0:01:22.7]} 17... Rad8 {[%clk 0:01:08.4]} 18. Be3 {[%clk
0:00:57.2]} 18... R4d5 {[%clk 0:00:49.3]} 19. Rxf6 {[%clk 0:00:53.1]} 19... Bxf6
{[%clk 0:00:44]} 20. Nxh7 {[%clk 0:00:51.3]} 20... Bg6 {[%clk 0:00:20.7]} 21.
Nxf6+ {[%clk 0:00:48.3]} 21... gxf6 {[%clk 0:00:21.6]} 22. Re1 {[%clk
0:00:48.1]} 22... Kg7 {[%clk 0:00:19.1]} 23. Qc3 {[%clk 0:00:45.2]} 23... b6
{[%clk 0:00:13.3]} 24. Bb3 {[%clk 0:00:34.8]} 24... Rd3 {[%clk 0:00:12.1]} 25.
Qc1 {[%clk 0:00:34.5]} 25... b5 {[%clk 0:00:10.3]} 26. Bh6+ {[%clk 0:00:33.8]}
26... Kh7 {[%clk 0:00:10.6]} 27. Bf4 {[%clk 0:00:33.8]} 27... Qd7 {[%clk
0:00:11.1]} 28. Bd6 {[%clk 0:00:33.5]} 28... Qf5 {[%clk 0:00:10.3]} 29. Bc2
{[%clk 0:00:31.4]} 29... Qg5 {[%clk 0:00:07]} 30. Qxg5 {[%clk 0:00:29.6]} 30...
fxg5 {[%clk 0:00:06.6]} 31. Bxd3 {[%clk 0:00:30.3]} 31... Bxd3 {[%clk
0:00:07.5]} 32. Re7 {[%clk 0:00:30.8]} 32... Kg6 {[%clk 0:00:06.2]} 33. Rxa7
{[%clk 0:00:30.9]} 33... Re8 {[%clk 0:00:06.7]} 34. Rc7 {[%clk 0:00:30.5]} 34...
Re1+ {[%clk 0:00:06.1]} 35. Kh2 {[%clk 0:00:31]} 35... Be4 {[%clk 0:00:05.6]}
36. f3 {[%clk 0:00:31]} 36... Bd5 {[%clk 0:00:05.6]} 37. Kg3 {[%clk 0:00:28.4]}
37... Re2 {[%clk 0:00:05.7]} 38. Rb7 {[%clk 0:00:24.9]} 38... Rxb2 {[%clk
0:00:05.3]} 39. a4 {[%clk 0:00:25.2]} 39... f5 {[%clk 0:00:04.9]} 40. Be5 {[%clk
0:00:17.1]} 40... f4+ {[%clk 0:00:04.8]} 41. Kh2 {[%clk 0:00:16.8]} 41... Bxf3
{[%clk 0:00:05.1]} 42. Bxb2 {[%clk 0:00:16.6]} 42... Bd5 {[%clk 0:00:03.1]} 43.
Rg7+ {[%clk 0:00:16.9]} 43... Kf5 {[%clk 0:00:03]} 44. axb5 {[%clk 0:00:17.7]}
44... cxb5 {[%clk 0:00:03.9]} 45. Re7 {[%clk 0:00:17.7]} 1-0

[Event "*** Titled Tuesday Blitz"]
[Site "Chess.com"]
[Date "2021.04.06"]
[Round "7"]
[White "Vandros57"]
[Black "ffbp3q"]
[Result "0-1"]
[WhiteElo "2206"]
[BlackElo "2374"]
[TimeControl "180+1"]
[EndTime "11:19:08 PDT"]
[Termination "ffbp3q won on time"]

1. d4 {[%clk 0:03:00.9]} 1... Nf6 {[%clk 0:02:59.9]} 2. c4 {[%clk 0:02:59.4]}
2... g6 {[%clk 0:02:59.8]} 3. Nc3 {[%clk 0:02:58.6]} 3... Bg7 {[%clk 0:03:00]}
4. e4 {[%clk 0:02:57.7]} 4... d6 {[%clk 0:03:00]} 5. f3 {[%clk 0:02:57.2]} 5...
O-O {[%clk 0:02:59.7]} 6. Be3 {[%clk 0:02:56.5]} 6... c5 {[%clk 0:02:59.8]} 7.
Nge2 {[%clk 0:02:55.2]} 7... Nc6 {[%clk 0:02:59]} 8. d5 {[%clk 0:02:54.2]} 8...
Ne5 {[%clk 0:02:58.9]} 9. Ng3 {[%clk 0:02:52.9]} 9... h5 {[%clk 0:02:51.2]} 10.
Bd3 {[%clk 0:02:41.2]} 10... h4 {[%clk 0:02:48.9]} 11. Nge2 {[%clk 0:02:02.5]}
11... e6 {[%clk 0:02:48.2]} 12. O-O {[%clk 0:01:56.7]} 12... exd5 {[%clk
0:02:43.2]} 13. cxd5 {[%clk 0:01:55.6]} 13... h3 {[%clk 0:02:28.5]} 14. g3
{[%clk 0:01:52.7]} 14... a6 {[%clk 0:02:17.8]} 15. a4 {[%clk 0:01:51.4]} 15...
b6 {[%clk 0:02:07.7]} 16. Kh1 {[%clk 0:01:39.5]} 16... Ne8 {[%clk 0:02:01.9]}
17. f4 {[%clk 0:01:37.1]} 17... Nxd3 {[%clk 0:01:55.4]} 18. Qxd3 {[%clk
0:01:35.7]} 18... f5 {[%clk 0:01:55.5]} 19. e5 {[%clk 0:01:16.9]} 19... dxe5
{[%clk 0:01:54.6]} 20. fxe5 {[%clk 0:01:16.5]} 20... Bxe5 {[%clk 0:01:50.5]} 21.
Bf4 {[%clk 0:01:16.1]} 21... Bg7 {[%clk 0:01:41.3]} 22. Rae1 {[%clk 0:01:11.2]}
22... Nd6 {[%clk 0:01:34.3]} 23. Bxd6 {[%clk 0:01:09.7]} 23... Qxd6 {[%clk
0:01:33]} 24. Nf4 {[%clk 0:01:08.1]} 24... Ra7 {[%clk 0:01:22.4]} 25. Ne6 {[%clk
0:01:07.2]} 25... Raf7 {[%clk 0:00:33.3]} 26. Nxg7 {[%clk 0:01:05]} 26... Kxg7
{[%clk 0:00:31.7]} 27. Qe3 {[%clk 0:01:01.2]} 27... Bb7 {[%clk 0:00:27.6]} 28.
Qe6 {[%clk 0:00:54.4]} 28... Rd8 {[%clk 0:00:23.8]} 29. Qxd6 {[%clk 0:00:51.6]}
29... Rxd6 {[%clk 0:00:23.3]} 30. Re5 {[%clk 0:00:50.2]} 30... Rfd7 {[%clk
0:00:20.2]} 31. Rfe1 {[%clk 0:00:46.9]} 31... Bxd5+ {[%clk 0:00:18.8]} 32. Nxd5
{[%clk 0:00:46.5]} 32... Rxd5 {[%clk 0:00:19.2]} 33. Kg1 {[%clk 0:00:39.8]}
33... Rxe5 {[%clk 0:00:16.6]} 34. Rxe5 {[%clk 0:00:39.8]} 34... Rd2 {[%clk
0:00:15]} 35. b4 {[%clk 0:00:33.6]} 35... cxb4 {[%clk 0:00:13.2]} 36. Re6 {[%clk
0:00:33.7]} 36... Ra2 {[%clk 0:00:09.7]} 37. Rxb6 {[%clk 0:00:32.8]} 37... Rxa4
{[%clk 0:00:09.7]} 38. Kf2 {[%clk 0:00:32.8]} 38... a5 {[%clk 0:00:09.6]} 39.
Kf3 {[%clk 0:00:32.7]} 39... g5 {[%clk 0:00:08.6]} 40. Ke3 {[%clk 0:00:24.7]}
40... Ra3+ {[%clk 0:00:08.7]} 41. Kd4 {[%clk 0:00:24.3]} 41... f4 {[%clk
0:00:08.5]} 42. gxf4 {[%clk 0:00:16.5]} 42... gxf4 {[%clk 0:00:08.8]} 43. Ke4
{[%clk 0:00:16.3]} 43... f3 {[%clk 0:00:09.1]} 44. Kf5 {[%clk 0:00:14.8]} 44...
f2 {[%clk 0:00:08.3]} 45. Rb7+ {[%clk 0:00:14.8]} 45... Kf8 {[%clk 0:00:07.1]}
46. Rb8+ {[%clk 0:00:10.2]} 46... Ke7 {[%clk 0:00:07.1]} 47. Rb7+ {[%clk
0:00:08.6]} 47... Kd6 {[%clk 0:00:07.2]} 0-1

[Event "*** Titled Tuesday Blitz"]
[Site "Chess.com"]
[Date "2021.04.06"]
[Round "7"]
[White "suyu28"]
[Black "GadimbayliA"]
[Result "1-0"]
[WhiteElo "2632"]
[BlackElo "2785"]
[TimeControl "180+1"]
[EndTime "11:19:09 PDT"]
[Termination "suyu28 won on time"]

1. d4 {[%clk 0:02:45.3]} 1... d5 {[%clk 0:02:58.1]} 2. c4 {[%clk 0:02:43.1]}
2... e5 {[%clk 0:02:58.2]} 3. e3 {[%clk 0:02:37.3]} 3... exd4 {[%clk 0:02:57.1]}
4. Qxd4 {[%clk 0:02:36.9]} 4... Nc6 {[%clk 0:02:54.9]} 5. Qd1 {[%clk 0:02:31.2]}
5... d4 {[%clk 0:02:38.8]} 6. exd4 {[%clk 0:02:27.9]} 6... Nxd4 {[%clk
0:02:34.8]} 7. Be3 {[%clk 0:02:27.8]} 7... Nc6 {[%clk 0:02:17.6]} 8. Qxd8+
{[%clk 0:02:24.5]} 8... Nxd8 {[%clk 0:02:18.5]} 9. Nc3 {[%clk 0:02:24.7]} 9...
c6 {[%clk 0:02:16.1]} 10. Nf3 {[%clk 0:02:23.5]} 10... Bb4 {[%clk 0:02:16.1]}
11. O-O-O {[%clk 0:02:21.9]} 11... Nf6 {[%clk 0:02:08.3]} 12. Bd4 {[%clk
0:02:13.2]} 12... Ne6 {[%clk 0:02:05.9]} 13. Bxf6 {[%clk 0:01:59]} 13... gxf6
{[%clk 0:02:06.8]} 14. Ne4 {[%clk 0:01:58.5]} 14... Ke7 {[%clk 0:01:13.7]} 15.
a3 {[%clk 0:01:58.4]} 15... Ba5 {[%clk 0:00:52.8]} 16. Nd6 {[%clk 0:01:52.9]}
16... Rd8 {[%clk 0:00:48.7]} 17. Nxc8+ {[%clk 0:01:32.5]} 17... Raxc8 {[%clk
0:00:49.6]} 18. Bd3 {[%clk 0:01:32.6]} 18... Bb6 {[%clk 0:00:31.7]} 19. Bxh7
{[%clk 0:01:30.3]} 19... Bxf2 {[%clk 0:00:31.2]} 20. Bf5 {[%clk 0:01:29.5]}
20... Rxd1+ {[%clk 0:00:23.5]} 21. Rxd1 {[%clk 0:01:28.8]} 21... Rg8 {[%clk
0:00:24]} 22. g3 {[%clk 0:01:14.3]} 22... c5 {[%clk 0:00:24]} 23. Bxe6 {[%clk
0:00:59.6]} 23... fxe6 {[%clk 0:00:23.1]} 24. Kd2 {[%clk 0:00:59.7]} 24... e5
{[%clk 0:00:20.9]} 25. Ke2 {[%clk 0:00:55.1]} 25... Bd4 {[%clk 0:00:21.1]} 26.
b3 {[%clk 0:00:53.4]} 26... Ke6 {[%clk 0:00:20.3]} 27. Rf1 {[%clk 0:00:51.5]}
27... f5 {[%clk 0:00:17.5]} 28. Nh4 {[%clk 0:00:51.3]} 28... Rg5 {[%clk
0:00:18.1]} 29. b4 {[%clk 0:00:46.9]} 29... Rh5 {[%clk 0:00:16.5]} 30. Rb1
{[%clk 0:00:33]} 30... b6 {[%clk 0:00:16.3]} 31. a4 {[%clk 0:00:31.9]} 31...
cxb4 {[%clk 0:00:13.1]} 32. Rxb4 {[%clk 0:00:31.2]} 32... e4 {[%clk 0:00:13.5]}
33. Rb5 {[%clk 0:00:29.4]} 33... Bf6 {[%clk 0:00:12.9]} 34. a5 {[%clk 0:00:20]}
34... Bxh4 {[%clk 0:00:12.4]} 35. axb6 {[%clk 0:00:20.1]} 35... axb6 {[%clk
0:00:12.4]} 36. Rxb6+ {[%clk 0:00:20.5]} 36... Ke5 {[%clk 0:00:12.5]} 37. Rb5+
{[%clk 0:00:20.9]} 37... Kf6 {[%clk 0:00:06.7]} 38. gxh4 {[%clk 0:00:07]} 38...
Rxh4 {[%clk 0:00:07.6]} 39. Ke3 {[%clk 0:00:05.5]} 39... Rxh2 {[%clk 0:00:05.6]}
40. c5 {[%clk 0:00:05.5]} 40... Rh3+ {[%clk 0:00:05.4]} 41. Kd4 {[%clk
0:00:04.1]} 41... Rd3+ {[%clk 0:00:05.2]} 42. Kc4 {[%clk 0:00:04.5]} 42... Rd1
{[%clk 0:00:05.7]} 43. c6 {[%clk 0:00:04.4]} 43... e3 {[%clk 0:00:03.1]} 44. Rb2
{[%clk 0:00:01.9]} 1-0

[Event "*** Titled Tuesday Blitz"]
[Site "Chess.com"]
[Date "2021.04.06"]
[Round "7"]
[White "Korchmar_Vasiliy"]
[Black "anasta10"]
[Result "1-0"]
[WhiteElo "2672"]
[BlackElo "2534"]
[TimeControl "180+1"]
[EndTime "11:19:10 PDT"]
[Termination "Korchmar_Vasiliy won by resignation"]

1. d4 {[%clk 0:03:00.9]} 1... Nf6 {[%clk 0:02:57.6]} 2. Nf3 {[%clk 0:03:01]}
2... g6 {[%clk 0:02:57.9]} 3. Bg5 {[%clk 0:03:01]} 3... Bg7 {[%clk 0:02:57]} 4.
Nbd2 {[%clk 0:03:01.4]} 4... d5 {[%clk 0:02:57.1]} 5. e3 {[%clk 0:03:01.8]} 5...
O-O {[%clk 0:02:57.5]} 6. Be2 {[%clk 0:03:01.7]} 6... c5 {[%clk 0:02:58.1]} 7.
c3 {[%clk 0:03:02.1]} 7... Nc6 {[%clk 0:02:55.9]} 8. dxc5 {[%clk 0:03:02.4]}
8... a5 {[%clk 0:02:55.9]} 9. a4 {[%clk 0:03:02]} 9... h6 {[%clk 0:02:54.7]} 10.
Bh4 {[%clk 0:02:54.6]} 10... e5 {[%clk 0:02:52.8]} 11. O-O {[%clk 0:02:52.9]}
11... Qe7 {[%clk 0:02:51.3]} 12. Nb3 {[%clk 0:02:52.1]} 12... Be6 {[%clk
0:02:45.8]} 13. Bb5 {[%clk 0:02:51.1]} 13... g5 {[%clk 0:02:30.8]} 14. Bg3
{[%clk 0:02:50.1]} 14... Bg4 {[%clk 0:02:30.9]} 15. h3 {[%clk 0:02:44.9]} 15...
Bh5 {[%clk 0:02:30.9]} 16. Be2 {[%clk 0:02:35.3]} 16... Ne4 {[%clk 0:02:28.6]}
17. Bh2 {[%clk 0:02:14.9]} 17... Bxf3 {[%clk 0:02:07.2]} 18. Bxf3 {[%clk
0:02:14.8]} 18... Rfd8 {[%clk 0:02:06.5]} 19. Bxe4 {[%clk 0:02:11.7]} 19... dxe4
{[%clk 0:02:07.4]} 20. Qg4 {[%clk 0:02:11.8]} 20... Qe6 {[%clk 0:01:37.4]} 21.
Qxe6 {[%clk 0:02:11.4]} 21... fxe6 {[%clk 0:01:38.3]} 22. Rfd1 {[%clk
0:02:11.7]} 22... Rd5 {[%clk 0:01:36.1]} 23. Kf1 {[%clk 0:02:09.4]} 23... Rad8
{[%clk 0:01:33]} 24. Ke2 {[%clk 0:02:09.7]} 24... Bf8 {[%clk 0:01:30.7]} 25. Nd2
{[%clk 0:02:09.1]} 25... Bxc5 {[%clk 0:01:23.6]} 26. Nxe4 {[%clk 0:02:09.3]}
26... Be7 {[%clk 0:01:24]} 27. f3 {[%clk 0:02:02.6]} 27... Kf7 {[%clk
0:01:21.7]} 28. Nf2 {[%clk 0:01:48.9]} 28... b5 {[%clk 0:01:15.5]} 29. Ng4
{[%clk 0:01:40.5]} 29... h5 {[%clk 0:01:04.5]} 30. Rxd5 {[%clk 0:01:39.7]} 30...
Rxd5 {[%clk 0:01:03.2]} 31. Nf2 {[%clk 0:01:36.7]} 31... bxa4 {[%clk 0:00:58.1]}
32. Rxa4 {[%clk 0:01:37.6]} 32... Rb5 {[%clk 0:00:58.6]} 33. Ra2 {[%clk
0:01:37.8]} 33... Kg6 {[%clk 0:00:48.6]} 34. Nd3 {[%clk 0:01:37.9]} 34... Kf5
{[%clk 0:00:48.1]} 35. e4+ {[%clk 0:01:37.3]} 35... Kg6 {[%clk 0:00:48.1]} 36.
Bg1 {[%clk 0:01:34.7]} 36... Rb8 {[%clk 0:00:41.4]} 37. Bc5 {[%clk 0:01:25.8]}
37... Bxc5 {[%clk 0:00:35.9]} 38. Nxc5 {[%clk 0:01:26.7]} 38... Kf7 {[%clk
0:00:32.1]} 39. Kd3 {[%clk 0:01:24.9]} 39... Rd8+ {[%clk 0:00:30.2]} 40. Kc2
{[%clk 0:01:25.4]} 40... g4 {[%clk 0:00:28.1]} 41. fxg4 {[%clk 0:01:22.8]} 41...
hxg4 {[%clk 0:00:29]} 42. hxg4 {[%clk 0:01:23.6]} 42... Rg8 {[%clk 0:00:29.1]}
43. Ra1 {[%clk 0:01:17.1]} 43... Rxg4 {[%clk 0:00:28.8]} 44. Rf1+ {[%clk
0:01:17.7]} 44... Ke7 {[%clk 0:00:27.8]} 45. Rf2 {[%clk 0:01:17.8]} 45... Kd6
{[%clk 0:00:25.5]} 46. Nb3 {[%clk 0:01:01.4]} 46... Rxe4 {[%clk 0:00:21.5]} 47.
Kd3 {[%clk 0:00:53.2]} 47... Rg4 {[%clk 0:00:21.8]} 48. Nd2 {[%clk 0:00:53.7]}
48... Rg3+ {[%clk 0:00:18.1]} 49. Ke2 {[%clk 0:00:49.8]} 49... Rg4 {[%clk
0:00:16.7]} 50. Kd3 {[%clk 0:00:46.4]} 50... Rg3+ {[%clk 0:00:16.9]} 51. Kc4
{[%clk 0:00:45.8]} 51... Rg4+ {[%clk 0:00:17.2]} 52. Kb5 {[%clk 0:00:45.6]}
52... e4 {[%clk 0:00:16.9]} 53. Nc4+ {[%clk 0:00:42.8]} 53... Kd7 {[%clk
0:00:12.7]} 54. Rf7+ {[%clk 0:00:36.6]} 54... Ne7 {[%clk 0:00:08.7]} 55. Ne5+
{[%clk 0:00:35.5]} 55... Ke8 {[%clk 0:00:09.1]} 56. Rxe7+ {[%clk 0:00:36]} 56...
Kxe7 {[%clk 0:00:10]} 57. Nxg4 {[%clk 0:00:36.6]} 57... Kf7 {[%clk 0:00:10.3]}
58. Kxa5 {[%clk 0:00:35.6]} 58... Kg6 {[%clk 0:00:11.2]} 59. b4 {[%clk
0:00:34.9]} 59... Kg5 {[%clk 0:00:12.1]} 60. Ne3 {[%clk 0:00:34.9]} 60... Kf4
{[%clk 0:00:12.7]} 61. Nc2 {[%clk 0:00:35.1]} 61... Kg3 {[%clk 0:00:12.6]} 62.
b5 {[%clk 0:00:35.1]} 62... Kf2 {[%clk 0:00:13.1]} 63. b6 {[%clk 0:00:35.3]}
63... Ke2 {[%clk 0:00:13.6]} 64. b7 {[%clk 0:00:35.2]} 64... Kd2 {[%clk
0:00:14.5]} 1-0

[Event "*** Titled Tuesday Blitz"]
[Site "Chess.com"]
[Date "2021.04.06"]
[Round "7"]
[White "Chessdude1987"]
[Black "Blitzking642"]
[Result "1/2-1/2"]
[WhiteElo "2314"]
[BlackElo "2444"]
[TimeControl "180+1"]
[EndTime "11:19:12 PDT"]
[Termination "Game drawn by repetition"]

1. e4 {[%clk 0:03:00.9]} 1... c5 {[%clk 0:03:00.1]} 2. Nc3 {[%clk 0:03:00.3]}
2... Nc6 {[%clk 0:02:59.8]} 3. g3 {[%clk 0:02:59.6]} 3... g6 {[%clk 0:02:59.8]}
4. Bg2 {[%clk 0:03:00]} 4... Bg7 {[%clk 0:03:00.4]} 5. d3 {[%clk 0:03:00.5]}
5... e6 {[%clk 0:03:00.7]} 6. Nh3 {[%clk 0:03:01]} 6... Nge7 {[%clk 0:03:00.3]}
7. O-O {[%clk 0:03:00.4]} 7... O-O {[%clk 0:02:54.4]} 8. Be3 {[%clk 0:03:00.5]}
8... d6 {[%clk 0:02:54]} 9. f4 {[%clk 0:02:57.4]} 9... Rb8 {[%clk 0:02:52.8]}
10. g4 {[%clk 0:02:57.2]} 10... f5 {[%clk 0:02:52.4]} 11. Nf2 {[%clk 0:02:51.7]}
11... b5 {[%clk 0:02:48.6]} 12. Qd2 {[%clk 0:02:48.5]} 12... b4 {[%clk
0:02:46.1]} 13. Ncd1 {[%clk 0:02:48]} 13... Bd7 {[%clk 0:02:40.2]} 14. h3 {[%clk
0:02:40]} 14... Qa5 {[%clk 0:02:34.5]} 15. c3 {[%clk 0:02:32]} 15... bxc3 {[%clk
0:02:33.3]} 16. bxc3 {[%clk 0:02:28.8]} 16... Qa3 {[%clk 0:02:28.7]} 17. Qc2
{[%clk 0:02:25.6]} 17... Nb4 {[%clk 0:02:10.7]} 18. Qb3 {[%clk 0:02:13.8]} 18...
Qa6 {[%clk 0:01:42.4]} 19. Qc4 {[%clk 0:01:30.5]} 19... Qxc4 {[%clk 0:01:34.1]}
20. dxc4 {[%clk 0:01:31.4]} 20... Nc2 {[%clk 0:01:28.6]} 21. Rc1 {[%clk
0:01:31.5]} 21... Nxe3 {[%clk 0:01:22.7]} 22. Nxe3 {[%clk 0:01:32.4]} 22... fxg4
{[%clk 0:01:06.7]} 23. Nfxg4 {[%clk 0:01:20.7]} 23... h5 {[%clk 0:01:05.1]} 24.
Nh2 {[%clk 0:01:20.7]} 24... Bh6 {[%clk 0:01:04.2]} 25. Nf3 {[%clk 0:01:01.3]}
25... Bxf4 {[%clk 0:01:02.8]} 26. Rfe1 {[%clk 0:00:59.7]} 26... Rb2 {[%clk
0:00:56.5]} 27. Rcd1 {[%clk 0:00:55.5]} 27... Rxa2 {[%clk 0:00:45.3]} 28. e5
{[%clk 0:00:54.3]} 28... Bc6 {[%clk 0:00:38.8]} 29. exd6 {[%clk 0:00:46.9]}
29... Nf5 {[%clk 0:00:09.9]} 30. Nxf5 {[%clk 0:00:39.7]} 30... exf5 {[%clk
0:00:10.2]} 31. d7 {[%clk 0:00:38.6]} 31... Rd8 {[%clk 0:00:10.2]} 32. Ne5
{[%clk 0:00:31.6]} 32... Rxg2+ {[%clk 0:00:09]} 33. Kf1 {[%clk 0:00:31.6]} 33...
Bxe5 {[%clk 0:00:07.4]} 34. Rxe5 {[%clk 0:00:31]} 34... Rh2 {[%clk 0:00:05.7]}
35. Rd6 {[%clk 0:00:19.9]} 35... Bxd7 {[%clk 0:00:04]} 36. Re7 {[%clk
0:00:12.7]} 36... Rxh3 {[%clk 0:00:03.6]} 37. Rxg6+ {[%clk 0:00:12.2]} 37... Kf8
{[%clk 0:00:03.4]} 38. Rgg7 {[%clk 0:00:12.2]} 38... Rf3+ {[%clk 0:00:03]} 39.
Ke2 {[%clk 0:00:11.7]} 39... Be8 {[%clk 0:00:03.4]} 40. Kxf3 {[%clk 0:00:11.2]}
40... Rd3+ {[%clk 0:00:02.8]} 41. Ke2 {[%clk 0:00:10.8]} 41... Rxc3 {[%clk
0:00:03.1]} 42. Rxa7 {[%clk 0:00:08]} 42... Rxc4 {[%clk 0:00:03.3]} 43. Rh7
{[%clk 0:00:07.2]} 43... Re4+ {[%clk 0:00:03.5]} 44. Kf3 {[%clk 0:00:07.1]}
44... Kg8 {[%clk 0:00:03.4]} 45. Rag7+ {[%clk 0:00:06.1]} 45... Kf8 {[%clk
0:00:03.6]} 46. Rc7 {[%clk 0:00:04.8]} 46... Kg8 {[%clk 0:00:03.5]} 47. Rcg7+
{[%clk 0:00:03.4]} 47... Kf8 {[%clk 0:00:03.9]} 48. Rc7 {[%clk 0:00:03.8]} 48...
Kg8 {[%clk 0:00:04]} 49. Rcg7+ {[%clk 0:00:04]} 1/2-1/2